Cogmind - Beta 13 X1 @@@ ROGUE MODE // 2023.08.31 @ 01:54:25 Player: deadnoob Result: Self-destructed Performance ------------- Evolutions (3) 1500 Regions Visited (10) 2000 Robots Destroyed (148) 740 Value Destroyed (4195) 4195 Prototype IDs (35) 700 Alien Tech Used (0) 0 Bonus (433) 433 TOTAL SCORE: 9568 Bonus ------- High Alert Combat Kills 11 Follower Combat Kills 122 Aligned with FarCom 300 Cogmind --------- Core Integrity 387/700 Matter 142/300 Energy 195/200 System Corruption 8% Temperature Cool (0) Movement Rolling (250) Ox10 Location -7/Lower Caves Parts ------- > --- POWER (2) -------- Micro Nuclear Core Micro Nuclear Core > --- PROPULSION (3) --- Armored Treads Advanced Treads Compact Wheel > --- UTILITY (6) ------ Humpback Advanced Weight Redist. System Hardened Heavy Armor Plating Sensor Drone Bay (20/20) > --- WEAPON (2) ------- Improved Assault Rifle Great Maul > --- INVENTORY (35) --- Micro Nuclear Core Light Treads Armored Treads Armored Treads Armored Treads Humpback High-capacity Matter Pod (200) Improved Salvage Targeting Computer Transmission Jammer Light Armor Plating Hardened Medium Armor Plating Improved Light Armor Plating Improved Light Armor Plating Improved Light Armor Plating Improved Light Armor Plating Reactive Plating Reactive Plating Hacking Suite Precision Beam Rifle Improved EM Pulse Cannon Ion Burst Cannon Improved Assault Rifle XL Autogun Array Guided EMP Blaster Improved Grenade Launcher Heavy Rocket Launcher Peak State ------------ > --- POWER ------------ Micro Nuclear Core Micro Nuclear Core > --- PROPULSION ------- Armored Treads Armored Huge Wheel > --- UTILITY ---------- Humpback Transmission Jammer Improved Light Armor Plating Reactive Plating Shield Generator > --- WEAPON ----------- Enhanced Autogun Enhanced Autogun > --- INVENTORY -------- Micro Nuclear Core Light Treads Armored Treads Armored Treads Compact Wheel Improved Heat Sink Humpback High-capacity Matter Pod Improved Salvage Targeting Computer Light Armor Plating Hardened Medium Armor Plating Hardened Heavy Armor Plating Improved Light Armor Plating Improved Light Armor Plating Reactive Plating Reactive Plating Hacking Suite Sensor Drone Bay Precision Beam Rifle Improved EM Pulse Cannon Ion Burst Cannon Improved Assault Rifle Improved Assault Rifle Improved Assault Rifle XL Autogun Array Guided EMP Blaster Improved Grenade Launcher Heavy Rocket Launcher Great Maul [Rating: 54] Favorites ----------- Power Improved Ion Engine Engine Improved Ion Engine Power Core Micro Nuclear Core Propulsion Light Treads Treads Light Treads Leg Aluminum Leg Wheel Compact Wheel Utility Humpback Device Improved Heat Sink Storage Humpback Processor Improved Targeting Computer Protection Light Armor Plating Weapon Improved Light Cannon Energy Gun Medium Laser Energy Cannon Ion Burst Cannon Ballistic Gun Enhanced Autogun Ballistic Cannon Improved Light Cannon Launcher Grenade Launcher Impact Weapon Great Maul Slashing Weapon Makeshift Sword Build | -11 -10 -10 -9 -9 -9 -8 -8 -8 -7 -7 ------- Run | Jun Mat Min Mat Min Exi Min Mat Sto Fac Low Slots Evolved 6 | . . . 2 . . . 2 . 2 . Power 1 | . . . . . . . . . 1 . Propulsion 1 | . . . 1 . . . . . . . Utility 4 | . . . 1 . . . 2 . 1 . Weapon . | . . . . . . . . . . . Parts Attached 193 | . 6 11 18 11 2 3 33 36 64 9 Power 13 | . . 1 2 1 . . 1 2 6 . Engine 9 | . . 1 1 1 . . 1 2 3 . Core 4 | . . . 1 . . . . . 3 . Reactor . | . . . . . . . . . . . Propulsion 35 | . 2 . 5 1 . 1 11 5 8 2 Treads 21 | . 2 . 5 . . . 7 2 4 1 Leg . | . . . . . . . . . . . Wheel 14 | . . . . 1 . 1 4 3 4 1 Hover . | . . . . . . . . . . . Flight . | . . . . . . . . . . . Utility 55 | . 4 3 7 2 2 . 9 4 21 3 Device 19 | . . 1 1 1 . . 4 1 9 2 Storage 6 | . 2 . 1 . 1 . . . 2 . Processor 2 | . 1 . . . . . . . 1 . Hackware . | . . . . . . . . . . . Protection 28 | . 1 2 5 1 1 . 5 3 9 1 Artifact . | . . . . . . . . . . . Weapon 90 | . . 7 4 7 . 2 12 25 29 4 Energy Gun 11 | . . 2 2 . . . 2 5 . . Energy Cannon 3 | . . . . . . . . 1 1 1 Ballistic Gun 24 | . . 3 2 . . . 2 3 13 1 Ballistic Cannon 12 | . . . . 4 . 1 4 3 . . Launcher 16 | . . 2 . 3 . . 1 3 6 1 Special Weapon . | . . . . . . . . . . . Impact Weapon 18 | . . . . . . . 2 6 9 1 Slashing Weapon 6 | . . . . . . 1 1 4 . . Piercing Weapon . | . . . . . . . . . . . Special Melee Weapon . | . . . . . . . . . . . Unidentified Prototypes 12 | . . 1 . . . . 1 8 2 . Corrupted Parts 1 | . . . . . . . . . 1 . System Corruption 2 | . . . . . . . . . 2 . Parts Lost 36 | . . 3 4 3 . . 12 4 8 2 Power 2 | . . 1 . . . . . 1 . . Propulsion 10 | . . . 2 1 . . 4 1 1 1 Utility 17 | . . 1 2 2 . . 5 2 5 . Weapon 7 | . . 1 . . . . 3 . 2 1 Highest Loss Streak 9 | . . 3 4 2 . . 9 3 5 2 To Critical Strikes . | . . . . . . . . . . . Average Slot Usage (%) 87 | . 99 99 100 100 97 88 84 77 83 76 Engine 9 | . 14 13 9 3 11 11 9 8 11 . Core 1 | . . . 1 7 . . . . 2 15 Treads 15 | . 24 28 33 24 22 22 15 9 6 9 Wheel 9 | . . . . 8 11 11 8 15 11 6 Device 7 | . . . . 10 9 . 14 5 12 8 Storage 9 | . 14 14 11 11 11 11 9 9 7 7 Protection 12 | . 12 13 21 11 9 11 12 11 13 13 Energy Gun 2 | . 28 15 13 1 . . . . . . Ballistic Gun 4 | . . 12 8 . . . 1 4 8 7 Ballistic Cannon 4 | . . . . 16 11 13 5 1 . . Launcher 2 | . . . . 4 11 7 . . 1 . Impact Weapon 2 | . . . . . . . 4 5 2 4 Slashing Weapon 1 | . . . . . . 1 3 4 . . Naked Turns . | . . . . . . . . . . . Heaviest Build 261 | 13 51 51 57 59 217 218 228 241 249 261 Greatest Support 60 | 20 40 40 60 60 16 16 16 40 32 28 Greatest Overweight (x) 16 | . 1 1 . 3 13 13 14 13 14 16 Average Overweight (x) 7 | . . 1 . 2 3 13 13 8 7 12 Largest Inventory Capacity 35 | . 20 20 20 20 35 35 35 35 35 35 Average Capacity 30 | . 15 20 20 20 21 35 35 35 35 35 Most Carried 35 | . 18 20 20 20 30 33 35 35 35 34 Average Carried 28 | . 10 19 17 18 17 30 31 32 34 30 Final Capacity 35 | 8 20 20 20 20 35 35 35 35 35 35 Final Carried 35 | 6 18 18 20 20 29 33 28 35 34 31 Class Distribution -------------------- 64% | Hauler-Mutant 23% | Mutant 9% | Commander-Mutant Dominant Class ---------------- Mutant | -10/Materials Mutant | -10/Mines Mutant | -9/Materials Mutant | -9/Mines Mutant | -9/Exiles Hauler-Mutant | -8/Mines Hauler-Mutant | -8/Materials Hauler-Mutant | -8/Storage Hauler-Mutant | -7/Factory Hauler-Mutant | -7/Lower Caves Resources | -11 -10 -10 -9 -9 -9 -8 -8 -8 -7 -7 ----------- Run | Jun Mat Min Mat Min Exi Min Mat Sto Fac Low Matter Collected 4173 | 159 97 111 211 254 . 260 622 613 1726 120 Remotely . | . . . . . . . . . . . Salvage Created 4953 | . 210 197 342 142 . 211 910 921 1921 99 Parts 265 | . 14 19 23 17 . 7 46 42 93 4 Haulers Intercepted 8 | . 1 . . . . . 2 3 2 . Recyclers Shooed 3 | . . . . . . 1 . . 2 . Parts Field Recycled . | . . . . . . . . . . . Retrieved Matter . | . . . . . . . . . . . Parts Self-Destructed 3 | . . . . . . . . . . 3 Prevented . | . . . . . . . . . . . Kills | -11 -10 -10 -9 -9 -9 -8 -8 -8 -7 -7 ------- Run | Jun Mat Min Mat Min Exi Min Mat Sto Fac Low Combat Hostiles Destroyed 112 | . 2 13 6 21 . 1 21 19 26 3 Melee 16 | . . . . . . . 6 8 2 . Guns 36 | . 2 6 6 3 . . 2 1 15 1 Cannons 7 | . . . . 3 . 1 1 2 . . AOE 40 | . . 7 . 15 . . 6 4 6 2 Classes Destroyed 17 | . 4 1 2 2 . 2 3 2 1 . Worker 10 | . . . . . . . . 5 5 . Builder 9 | . . . . . . . 2 3 4 . Tunneler 1 | . . . . . . 1 . . . . Hauler 8 | . 1 . . . . . 2 3 2 . Recycler 13 | . 1 . . . . 2 . 2 8 . Watcher 4 | . 1 . 2 . . . . . 1 . Swarmer 28 | . . 9 . 10 . . . 9 . . Grunt 43 | . 2 4 3 . . . 13 4 15 2 Brawler 2 | . . . . . . . . 2 . . Duelist 2 | . . . 1 . . . . . . 1 Sentry 13 | . . . 2 . . . 2 4 5 . Demolisher 2 | . . . . 2 . . . . . . Specialist 4 | . . . . . . . 4 . . . Hunter 2 | . . . . . . 1 1 . . . Programmer 6 | . . . . . . . . . 6 . Heavy 1 | . . . . . . . 1 . . . Assembled 9 | . . . . 9 . . . . . . Best Kill Streak 10 | . 2 6 3 9 . 1 10 6 8 2 Combat Bots Only 9 | . 1 6 3 9 . 1 9 5 5 2 Max Kills in Single Turn 3 | . 1 3 1 3 . 1 2 3 3 1 Gunslinging . | . . . . . . . . . . . Exploded 3 | . . 3 . 3 . . 2 3 2 1 Melee 1 | . . . . . . . 1 1 1 . Uniques/NPCs Destroyed . | . . . . . . . . . . . Combat | -11 -10 -10 -9 -9 -9 -8 -8 -8 -7 -7 -------- Run | Jun Mat Min Mat Min Exi Min Mat Sto Fac Low Damage Taken 7788 | . 155 554 619 382 . 128 1884 564 3204 298 Core 915 | . . 88 47 13 . 14 333 107 270 43 Absorbed by Shields 1292 | . . . . . . . 388 104 800 . Ignored by Resistances 219 | . . . . . . . . . 219 . Regen/Repaired (Parts) 28 | . . . 28 . . . . . . . Core Remaining (%) 66 | 100 . 64 . . . 81 . 20 . . Volleys Fired 266 | . 25 19 31 22 . 9 23 15 110 12 Largest 2 | . 2 2 2 2 . 2 2 2 2 2 Hottest 123 | . 90 90 90 90 . 78 90 64 50 123 Shots Fired 472 | . 50 36 61 32 . 15 32 22 205 19 Gun 377 | . 50 32 61 12 . . 11 7 188 16 Cannon 47 | . . . . 8 . 15 12 11 . 1 Launcher 48 | . . 4 . 12 . . 9 4 17 2 Special . | . . . . . . . . . . . Kinetic 306 | . . 12 35 8 . 15 14 18 188 16 Thermal 83 | . 50 20 12 . . . . . . 1 Explosive 40 | . . 4 . 12 . . 9 4 9 2 Electromagnetic 43 | . . . 14 12 . . 9 . 8 . Robot Hit Streak 22 | . 8 6 7 6 . 4 9 6 22 21 Robot Miss Streak 6 | . 6 2 5 2 . 1 2 1 4 2 Penetration Max . | . . . . . . . . . . . Secondary Targets 8 | . 1 3 1 1 . . . . 2 . Max Gunslinging Chain 1 | . 1 1 1 1 . . . . 1 . Shots Hit Robots 424 | . 27 27 42 17 . 13 66 53 165 14 Core Hits 210 | . 11 17 17 29 . 4 33 21 74 4 Critical Kills 6 | . . . . . . . 2 . 4 . Critical Parts Destroyed 15 | . . . . . . . 8 4 2 1 Critical Strikes 30 | . 1 5 1 1 . 1 10 4 6 1 Burn 6 | . 1 5 . . . . . . . . Destroy 2 | . . . . . . . . . 2 . Blast 2 | . . . . 1 . 1 . . . . Corrupt 1 | . . . 1 . . . . . . . Smash 19 | . . . . . . . 10 4 4 1 Melee Attacks 203 | . . . . . . 4 66 79 52 2 Impact 146 | . . . . . . . 57 37 50 2 Slashing 57 | . . . . . . 4 9 42 2 . Piercing . | . . . . . . . . . . . Sneak Attacks 39 | . . . . . . 4 7 20 8 . Combat Hostiles 1 | . . . . . . . . 1 . . Follow-up Attacks 1 | . . . . . . . . 1 . . Damage Inflicted 15031 | . 331 768 500 1141 . 436 3069 3066 5251 469 Guns 4007 | . 319 268 463 112 . . 113 63 2500 169 Cannons 748 | . . . . 87 . 153 121 387 . . Explosions 4697 | . . 500 30 935 . . 1154 338 1474 266 Melee 5553 | . . . . . . 283 1681 2278 1277 34 Ramming 26 | . 12 . 7 7 . . . . . . Kinetic 3773 | . . 88 190 87 . 153 136 450 2500 169 Thermal 627 | . 319 180 128 . . . . . . . Explosive 4357 | . . 500 . 935 . . 1154 338 1164 266 Electromagnetic 695 | . . . 175 112 . . 98 . 310 . Impact 4015 | . . . . . . . 1533 1171 1277 34 Slashing 1538 | . . . . . . 283 148 1107 . . Piercing . | . . . . . . . . . . . Highest Corruption 9 | . . . . . . . . 9 8 8 Average Corruption 7 | . . . . . . . . 8 5 8 Corruption Purged . | . . . . . . . . . . . Corruption Blocked . | . . . . . . . . . . . Effects 146 | . . . . . . . . 76 55 15 Message Errors 32 | . . . . . . . . 20 10 2 Matter Fused 33 | . . . . . . . . 17 13 3 Heat Flow Errors 16 | . . . . . . . . 7 7 2 Energy Discharges 14 | . . . . . . . . 9 3 2 Parts Rejected 3 | . . . . . . . . 1 2 . Data Loss (minor) 27 | . . . . . . . . 14 8 5 Data Loss (major) 6 | . . . . . . . . 3 3 . Misfires 8 | . . . . . . . . 4 4 . Alerts 5 | . . . . . . . . 1 3 1 Weapon Failures 2 | . . . . . . . . . 2 . Overload Shots . | . . . . . . . . . . . Overflow Damage 1750 | . . 30 . 10 . 106 404 619 547 34 Projectiles . | . . . . . . . . . . . Explosions 69 | . . 30 . 10 . . . 20 9 . Melee 1681 | . . . . . . 106 404 599 538 34 Knockbacks 19 | . . . . . . 2 7 4 6 . Impact 15 | . . . . . . . 6 3 6 . Kinetic 3 | . . . . . . 2 1 . . . Secondary 1 | . . . . . . . . 1 . . Self-Inflicted Damage 223 | . . 47 . 46 . . 86 . 26 18 Shots 16 | . . 2 . 2 . . 9 . 2 1 Rammed 5 | . 1 1 2 1 . . . . . . Targets Rammed 5 | . 1 1 2 1 . . . . . . Kicked . | . . . . . . . . . . . Crushed . | . . . . . . . . . . . Highest Temperature 477 | . 249 188 174 129 . 105 8 281 382 477 Average Temperature 103 | . 76 64 52 55 . 46 4 96 133 200 Received Heat Transfer 2139 | . 90 180 144 . . . 610 99 908 108 Effects 11 | . 1 . . . . . . . 3 7 Shutdowns 4 | . . . . . . . . . 1 3 Energy Bleed 3 | . . . . . . . . . 2 1 Interference 2 | . 1 . . . . . . . . 1 Damage (minor) 2 | . . . . . . . . . . 2 Siege Activations . | . . . . . . . . . . . Robots Corrupted . | . . . . . . . . . . . Combat Hostiles . | . . . . . . . . . . . Parts Fried 35 | . . . . 1 . . 8 15 11 . Impact Corruptions 50 | . . . . . . . 15 18 16 1 Robots Melted . | . . . . . . . . . . . Combat Hostiles . | . . . . . . . . . . . Parts Melted 4 | . 2 2 . . . . . . . . Heat Transferred 2044 | . 929 840 275 . . . . . . . Parts Sabotaged . | . . . . . . . . . . . Parts Stolen . | . . . . . . . . . . . Parts Stripped . | . . . . . . . . . . . Power Chain Reactions 1 | . . . 1 . . . . . . . Missiles Intercepted . | . . . . . . . . . . . Alert | -11 -10 -10 -9 -9 -9 -8 -8 -8 -7 -7 ------- Run | Jun Mat Min Mat Min Exi Min Mat Sto Fac Low Peak Influence 407 | . 115 224 236 182 . 35 237 249 407 . Initial 112 | . . 4 39 13 . . 1 94 112 . Average 94 | . 45 65 142 66 . 5 99 113 145 . Maximum Alert Level 2 | . . 1 1 . . . 1 1 2 . Low Security (%) 86 | . 100 90 80 100 . 100 73 86 78 . Level 1 13 | . . 9 19 . . . 26 13 18 . Level 2 . | . . . . . . . . . 2 . Level 3 . | . . . . . . . . . . . Level 4 . | . . . . . . . . . . . Level 5 . | . . . . . . . . . . . High Security . | . . . . . . . . . . . Max Security . | . . . . . . . . . . . Squads Dispatched 24 | . . . . . . . 7 2 15 . Investigation 3 | . . . . . . . 1 1 1 . Extermination 4 | . . . . . . . . . 4 . Reinforcement 13 | . . . . . . . 6 1 6 . Assault . | . . . . . . . . . . . Garrison 4 | . . . . . . . . . 4 . Intercept . | . . . . . . . . . . . Searches Triggered . | . . . . . . . . . . . Construction Impeded 4 | . . . . . . . 2 . 2 . Haulers Reinforced . | . . . . . . . . . . . Active Scanning Responses . | . . . . . . . . . . . Cargo Convoy Interrupts 1 | . . . . . . . . . 1 . Stealth | -11 -10 -10 -9 -9 -9 -8 -8 -8 -7 -7 --------- Run | Jun Mat Min Mat Min Exi Min Mat Sto Fac Low Distress Signals 6 | . . . 2 . . . 3 . 1 . Communications Jammed . | . . . . . . . . . . . Distress Signals . | . . . . . . . . . . . Times Spotted 154 | . 5 14 10 19 . 1 26 21 46 12 Peak Tracking Total 9 | . 3 6 5 7 . 1 8 5 5 9 Tactical Retreats 9 | . . 1 1 . . . 2 2 3 . Traps | -11 -10 -10 -9 -9 -9 -8 -8 -8 -7 -7 ------- Run | Jun Mat Min Mat Min Exi Min Mat Sto Fac Low Traps Triggered 7 | . . . . . . . . 3 4 . Indirectly . | . . . . . . . . . . . Trap Hack Attempts . | . . . . . . . . . . . Triggered . | . . . . . . . . . . . Disarmed . | . . . . . . . . . . . Reprogrammed . | . . . . . . . . . . . Reused . | . . . . . . . . . . . Traps Extracted . | . . . . . . . . . . . Installed . | . . . . . . . . . . . Triggered 4 | . . . . . . . 1 . 3 . Most Traps Carried 4 | . . . . 4 4 4 4 . . . Machines | -11 -10 -10 -9 -9 -9 -8 -8 -8 -7 -7 ---------- Run | Jun Mat Min Mat Min Exi Min Mat Sto Fac Low Machines Disabled 6 | . . . . . . . . 5 1 . Max in Single Turn 1 | . . . . . . . . 1 1 . Garrison Access 1 | . . . . . . . . 1 . . Machines Repaired . | . . . . . . . . . . . Machines Sabotaged . | . . . . . . . . . . . Overloaded Fab Kills . | . . . . . . . . . . . Hacking | -11 -10 -10 -9 -9 -9 -8 -8 -8 -7 -7 --------- Run | Jun Mat Min Mat Min Exi Min Mat Sto Fac Low Machines Accessed 22 | . 2 1 1 . 1 1 2 9 5 . Terminals 13 | . 2 . . . . 1 2 7 1 . Fabricators 3 | . . . . . . . . . 3 . Repair Stations 2 | . . . 1 . . . . 1 . . Recycling Units . | . . . . . . . . . . . Scanalyzers . | . . . . . . . . . . . Garrison Access 2 | . . . . . . . . 1 1 . Total Hacks 47 | . 9 1 2 . 1 3 4 16 11 . Successful 17 | . 3 1 2 . 1 . . 5 5 . Failed 30 | . 6 . . . . 3 4 11 6 . Catastrophic 7 | . 3 . . . . . 2 2 . . Database Lockouts . | . . . . . . . . . . . Manual 29 | . 9 . . . 1 3 4 8 4 . Terminals 32 | . 9 . . . . 3 4 14 2 . Fabricators 7 | . . . . . . . . . 7 . Repair Stations 3 | . . . 2 . . . . 1 . . Recycling Units . | . . . . . . . . . . . Scanalyzers . | . . . . . . . . . . . Garrison Access 3 | . . . . . . . . 1 2 . Terminal Hacks 9 | . 3 1 . . 1 . . 4 . . Part Schematic 1 | . 1 . . . . . . . . . Robot Analysis 2 | . 2 . . . . . . . . . Open Door 3 | . . 1 . . . . . 2 . . Unreport Threat 1 | . . . . . . . . 1 . . Zone Layout 1 | . . . . . . . . 1 . . Derelict Proto ID Bank 1 | . . . . . 1 . . . . . Fabricator Hacks 1 | . . . . . . . . . 1 . Network Status 1 | . . . . . . . . . 1 . Repair Station Hacks 2 | . . . 2 . . . . . . . Scan Component 1 | . . . 1 . . . . . . . Repair 1 | . . . 1 . . . . . . . Recycling Unit Hacks . | . . . . . . . . . . . Scanalyzer . | . . . . . . . . . . . Garrison Access Hacks 1 | . . . . . . . . 1 . . Seal Access 1 | . . . . . . . . 1 . . Unauthorized Hacks 4 | . . . . . . . . . 4 . Terminals . | . . . . . . . . . . . Fabricators 4 | . . . . . . . . . 4 . Report 1 | . . . . . . . . . 1 . Liberate 2 | . . . . . . . . . 2 . Haulers 1 | . . . . . . . . . 1 . Repair Stations . | . . . . . . . . . . . Recycling Units . | . . . . . . . . . . . Scanalyzers . | . . . . . . . . . . . Garrison Access . | . . . . . . . . . . . Data Cores Recovered . | . . . . . . . . . . . Used . | . . . . . . . . . . . Hacking Detections 16 | . 2 . 1 . . 1 2 6 4 . Full Trace Events 2 | . . . . . . . . 2 . . Feedback Events . | . . . . . . . . . . . Feedback Blocked . | . . . . . . . . . . . Robot Schematics Acquired . | . . . . . . . . . . . Robots Built . | . . . . . . . . . . . Authchips . | . . . . . . . . . . . Time . | . . . . . . . . . . . Total Robot Build Rating . | . . . . . . . . . . . Part Schematics Acquired 1 | . 1 . . . . . . . . . Parts Built . | . . . . . . . . . . . Authchips . | . . . . . . . . . . . Time . | . . . . . . . . . . . Total Part Build Rating . | . . . . . . . . . . . Parts Repaired 1 | . . . 1 . . . . . . . Time 26 | . . . 26 . . . . . . . Parts Recycled . | . . . . . . . . . . . Recycled Matter . | . . . . . . . . . . . Retrieved Matter . | . . . . . . . . . . . Retrieved Components . | . . . . . . . . . . . Parts Scanalyzed . | . . . . . . . . . . . Part Schematics Acquired . | . . . . . . . . . . . Parts Damaged . | . . . . . . . . . . . Bothacking | -11 -10 -10 -9 -9 -9 -8 -8 -8 -7 -7 ------------ Run | Jun Mat Min Mat Min Exi Min Mat Sto Fac Low Used RIF Installer . | . . . . . . . . . . . Robots Hacked . | . . . . . . . . . . . Non-combat . | . . . . . . . . . . . Combat . | . . . . . . . . . . . Robot Hacks Applied . | . . . . . . . . . . . Relay Couplers Released 3 | . . . . . . . . . 3 . Programmers 3 | . . . . . . . . . 3 . Fabnet Peak Effective % . | . . . . . . . . . . . Robots Rewired . | . . . . . . . . . . . Allies Hacked . | . . . . . . . . . . . Hacks Repelled . | . . . . . . . . . . . Allies | -11 -10 -10 -9 -9 -9 -8 -8 -8 -7 -7 -------- Run | Jun Mat Min Mat Min Exi Min Mat Sto Fac Low Total Allies 13 | . . . . . . . . 10 3 . Largest Group 10 | . . . . . . . . 10 10 . Highest-Rated Group 173 | . . . . . . . . 173 173 . Highest-Rated Ally 29 | . . . . . . . . 29 29 . Total Orders 2 | . . . . . . . . 2 . . STAY 1 | . . . . . . . . 1 . . FOLLOW 1 | . . . . . . . . 1 . . Ally Attacks 86 | . . . . . . . . 31 55 . Total Damage 1133 | . . . . . . . . 394 739 . Kills 9 | . . . . . . . . 4 5 . Allies Corrupted . | . . . . . . . . . . . Allies Melted . | . . . . . . . . . . . Intel | -11 -10 -10 -9 -9 -9 -8 -8 -8 -7 -7 ------- Run | Jun Mat Min Mat Min Exi Min Mat Sto Fac Low Robot Analysis Total 2 | . 2 . . . . . . . . . Derelict Logs Recovered 4 | . . 1 . 3 . . . . . . Drone Launches 1 | . . . . . . . . . . 1 Drone Recoveries 1 | . . . . . . . . . . 1 Exploration | -11 -10 -10 -9 -9 -9 -8 -8 -8 -7 -7 ------------- Run | Jun Mat Min Mat Min Exi Min Mat Sto Fac Low Turns Passed 12454 | . 535 751 409 1031 605 1642 1773 2300 2984 424 Spaces Moved 4631 | 1 212 163 172 633 383 541 473 814 1113 126 Core . | . . . . . . . . . . . Treads 656 | . 169 163 172 117 . . . 35 . . Legs 44 | 1 43 . . . . . . . . . Wheels 3931 | . . . . 516 383 541 473 779 1113 126 Hover . | . . . . . . . . . . . Flight . | . . . . . . . . . . . Fastest Speed 120 | 120 120 240 160 145 145 295 295 210 205 220 Average Speed 222 | 120 193 240 160 147 152 295 295 238 216 292 Slowest Speed 565 | 120 240 240 160 160 295 295 310 565 310 340 Overloaded Moves . | . . . . . . . . . . . Propulsion Burnouts . | . . . . . . . . . . . Robots Hopped . | . . . . . . . . . . . Cave-ins Triggered . | . . . . . . . . . . . Exploration Rate (%) 45 | 2 29 44 17 94 70 98 20 74 40 16 Regions Visited 10 Branch Regions 6 Pre-discovered Areas 2 | . . . . 1 . . . 1 . . Known Exits Taken 2 | . . . . . . 1 1 . . . Unknown Exits Taken 8 | 1 1 1 1 1 1 . . 1 1 . Scrap Searched 4 | . . 1 . 1 . 1 . . . 1 Spaces Dug 118 | . . . . 37 . . 16 37 27 1 Terrain Destroyed 281 | . . 23 3 76 . . 29 61 58 31 Melee 51 | . . . . . . . 13 15 22 1 Projectile 7 | . . . . 1 . . 4 2 . . AOE 223 | . . 23 3 75 . . 12 44 36 30 Terrain Rammed . | . . . . . . . . . . . Walls Destroyed . | . . . . . . . . . . . Machines Disabled . | . . . . . . . . . . . Actions | -11 -10 -10 -9 -9 -9 -8 -8 -8 -7 -7 --------- Run | Jun Mat Min Mat Min Exi Min Mat Sto Fac Low Total 6076 | . 287 486 248 694 414 569 719 1051 1453 155 Wait 543 | . 18 287 7 19 . 8 83 58 59 4 Move 4621 | . 211 162 171 632 382 540 472 813 1112 126 Hop . | . . . . . . . . . . . Pick Up 115 | . 18 3 12 6 16 4 19 17 19 1 Fast Attach 42 | . 2 3 3 . . . 4 15 14 1 Attach 62 | . 1 2 6 4 2 . 16 8 19 4 Detach 25 | . 1 . . . 1 . 5 10 7 1 Swap 89 | . 3 6 9 7 . 3 13 13 31 4 Drop 103 | . 7 3 7 3 13 1 18 21 30 . Fire 266 | . 25 19 31 22 . 9 23 15 110 12 Melee 197 | . . . . . . 4 66 73 52 2 Ram . | . . . . . . . . . . . Kick . | . . . . . . . . . . . Crush 5 | . 1 1 2 1 . . . . . . Escape Stasis 8 | . . . . . . . . 8 . . Rewire . | . . . . . . . . . . . Trap . | . . . . . . . . . . . Miscellaneous . | . . . . . . . . . . . Route ------- -11/Junkyard -10/Materials -10/Mines -9/Materials (discovered 2 exits: Mat / [*Min]) -9/Mines (discovered 3 exits: *Mat x2 / *Exi) -9/Exiles -8/Mines (discovered 2 exits: *Mat x2) -8/Materials (discovered 2 exits: *Sto x2) -8/Storage -7/Factory -7/Lower Caves History --------- Turn | Location | Event 1 | -11/Junkyard | Discovered new exit (range 0) 1 | -11/Junkyard | Entered Materials 274 | -10/Materials | Discovered new exit (range 8) 306 | -10/Materials | Build established: Mutant 536 | -10/Materials | Entered Mines 670 | -10/Mines | Learned location of 1 exit from Materials 755 | -10/Mines | Found the Drone Emporium 767 | -10/Mines | Found Prototype Device 767 | -10/Mines | Identified Sensor Drone Bay 835 | -10/Mines | Discovered new exit (range 15) 911 | -10/Mines | Excavation squad dispatched 911 | -10/Mines | A large section of the Mines collapsed 1161 | -10/Mines | Excavation squad dispatched 1255 | -10/Mines | Lost 3 parts (1p1u1w) 1287 | -10/Mines | Entered Materials 1287 | -9/Materials | Evolved 2 slots: Propulsion x1, Utility x1 1288 | -9/Materials | Identified exit to Materials 1412 | -9/Materials | Lost 4 parts (2n2u) 1545 | -9/Materials | Repaired Grenade Launcher? 1642 | -9/Materials | Discovered new exit (range 9) 1696 | -9/Materials | Entered Mines 1731 | -9/Mines | Discovered exit to Materials (range 6) 1827 | -9/Mines | Met a Derelict bent on vengeance 1839 | -9/Mines | A weapon hastily lodged in a ceiling crevice suddenly fell to the ground 1859 | -9/Mines | Assembled infested the area 1928 | -9/Mines | Destroyed 9 combat bots 2029 | -9/Mines | Learned Materials garrison access intel 2034 | -9/Mines | Learned location of 1 exit from Materials 2051 | -9/Mines | Learned location of Zion (-7) 2237 | -9/Mines | Deemed a non-threat by the Exiles lab entrance 2237 | -9/Mines | Discovered new exit (range 5) 2337 | -9/Mines | Found a hidden stash of uninstalled traps 2425 | -9/Mines | Discovered exit to Materials (range 7) 2727 | -9/Mines | Entered Exiles 2762 | -9/Exiles | Met 8R-AWN 2788 | -9/Exiles | Met EX-HEX 2845 | -9/Exiles | Met EX-DEC 2896 | -9/Exiles | Discovered new exit (range 10) 3072 | -9/Exiles | Met EX-BIN 3091 | -9/Exiles | Aligned with FarCom system 3092 | -9/Exiles | Given EX-Vault access code 3126 | -9/Exiles | Opened EX-Vault 3134 | -9/Exiles | Found XL Autogun Array 3166 | -9/Exiles | Warned to stay clear of 0b10 Research branches 3332 | -9/Exiles | Left Exiles lab with XL Autogun Array 3332 | -9/Exiles | Entered Mines 3344 | -8/Mines | Discovered exit to Materials (range 15) 3561 | -8/Mines | Build established: Hauler-Mutant 4469 | -8/Mines | Discovered exit to Materials (range 9) 4974 | -8/Mines | Entered Materials 4974 | -8/Materials | Evolved 2 slots: Utility x2 4975 | -8/Materials | Identified exit to Storage 4976 | -8/Materials | Loaded intel: 1 garrison access location 5824 | -8/Materials | Discovered exit to Storage (range 9) 5953 | -8/Materials | Core integrity fell below 50% 5986 | -8/Materials | Destroyed 9 combat bots 5994 | -8/Materials | Lost 9 parts (3n3u3w) 6747 | -8/Materials | Entered Storage 6930 | -8/Storage | Lost 3 parts (1n2u) 7596 | -8/Storage | Learned location of Armory (-3) 7907 | -8/Storage | Assisted by bots powering up and referring to "LRC-V3" 8096 | -8/Storage | Discovered new exit (range 8) 8217 | -8/Storage | Build established: Commander-Mutant 9047 | -8/Storage | Entered Factory 9047 | -7/Factory | Accompanied by 10 allies 9047 | -7/Factory | Evolved 2 slots: Power x1, Utility x1 9419 | -7/Factory | Build established: Hauler-Mutant 10123 | -7/Factory | Garrison activated, responded to threat 10352 | -7/Factory | Cargo convoy interrupted 11951 | -7/Factory | Discovered new exit (range 5) 12028 | -7/Factory | Lost 5 parts (3u2w) 12031 | -7/Factory | Entered Lower Caves 12455 | -7/Lower Caves | Self-destructed Last Messages --------------- 12297_ Found Adv. Weight Redist. System. 12297_ Found Adv. Treads. 12297_ Found 38 Matter. 12298_ Acquired 38 matter. 12304_ Acquired Adv. Treads. 12309_ Acquired Adv. Weight Redist. System. 12328_ System corrupted: Matter fused (-10). 12362_ System corrupted: Matter fused (-6). 12378_ System corrupted: Heat flow error (+228). 12433_ System corrupted: Energy discharge (-56). 12445_ L-41 Fighter springs to life. 12445_ G-47 Trooper springs to life. 12445_ L-41 Fighter springs to life. 12446_ G-47 Trooper springs to life. 12446_ L-41 Fighter springs to life. 12447_ L-41 Fighter suffers critical hit (Smash). 12447_ Destroyed Microactuators. 12447_ L-41 Fighter system corrupted by crushing effect. 12448_ Sensor Drone retrieved by Sensor Drone Bay. 12451_ System corrupted: Energy discharge (-40). Map ----- +----------------------------------------------------+ | ?????????????????????????????????????????????????? | | ?????????????????????????????????????????????????? | | ?????????????????????????????????????????????????? | | ?????????????????????????????????????????????????? | | ?????????????????????????????????????????????????? | | ?????????????????????????????????????????????????? | | ????????????????????????????????################## | | ????????????????????????????????# | | ????????????????????????????????# | | ????????????????????????#####???# ############# # | | ???????????????????????## #???# #???????????# # | | ???????????????????????# ##??# #???????????## | | ???????????????????????# #??# #???????????## | | ??????????????????????## #??# #???????##### # | | ??????????????????????# ##?# #??????## ## | | ??????#### ??????????#### ### #????### | | ????# ########## ## #???## | | ????# ## #???# ## | | ????# # #######s ## ###?### ### | | ????# ##??????# ?#"""?#s ## # ##??# #?## ## | | ???????????????# # "# ## #??###??###? | | ???????????????# # #??????????? | | ??????????# ; #??????????? | | ?????????? # "# ## #?????????? | | ?????????????? ????#""""#l## ## ## ##?????????? | | ????????????? ????####?#@## ## #?##??????????? | | ???????????? ????????? ## ####?????????????? | | ???????????? ??????? ### ###????????????????? | | ??????????? ?????? #??####??????????????????? | | ??????????? ???? ##?????????????????????????? | | ??????????? ??? #???????????????????????????? | | ????????????? ## #????????????????????????????? | | ???????????? ???####?????????????????????????????? | | ?????????????????????????????????????????????????? | | ?????????????????????????????????????????????????? | | ?????????????????????????????????????????????????? | | ?????????????????????????????????????????????????? | | ?????????????????????????????????????????????????? | | ?????????????????????????????????????????????????? | | ?????????????????????????????????????????????????? | | ?????????????????????????????????????????????????? | | ?????????????????????????????????????????????????? | | ?????????????????????????????????????????????????? | | ?????????????????????????????????????????????????? | | ?????????????????????????????????????????????????? | | ?????????????????????????????????????????????????? | | ?????????????????????????????????????????????????? | | ?????????????????????????????????????????????????? | | ?????????????????????????????????????????????????? | | ?????????????????????????????????????????????????? | +----------------------------------------------------+ Best States ------------- Heat Dissipation 48 Energy Generation 25 Energy Capacity 465 Matter Stores 300 Matter Capacity 300 Sight Range 16 Terrain Scan Density 10 ECM Strength 2 Jamming Range 12 Additional Mass Support 9 Armor Coverage 975 Resistance: KI 20 Evasion (%) 55 Targeting Accuracy 6 Recoil Reduction 3 Item Schematics ----------------- Huge Storage Unit | -10/Materials | Hacked Robot Schematics ------------------ None Fabricated ------------ Nothing Alien Tech Used ----------------- None Achievements -------------- None Challenges ------------ None Game ------ Seed ReactiveSigixCompactor Manual? 0 Play Time 01:06:39 Cumulative 242.9 hours Start 2023.08.30 @ 18:13:14 End 2023.08.31 @ 01:54:25 Sessions 5 Manual Loads 0 Difficulty Rogue Special Mode None Game No. 324 Rogue 324 Adventurer 0 Explorer 0 Win Type - Total 7 Types 6/0/0/1/0/0/0/0/0 Lore% 81 Gallery% 86 Achievement% 69 Wizard Run 0 Options --------- ASCII 0 Keyboard 0 Movement Numpad Keybinds 0 Fullscreen 2 Font 18/SmallcapsGlow Map View 76x50 Tactical HUD 1 Map Filters NONE Filters NONE Steam 1 RUN: 3a9c683c-b43e-4f33-ad79-7d77229732ef